bitfinex-derivatives/quotes_BTCF0:USTF0_20260111
["timestamp","ask_amount","ask_price","bid_price","bid_amount"]
[1768115246527,0.011031,90761.0,90749.0,0.01918655]
[1768115246729,0.011031,90761.0,90749.0,0.03021855]
[1768115246924,0.011031,90761.0,90749.0,0.01918655]
[1768115247233,0.01103,90763.0,90749.0,0.03021855]
[1768115248735,0.00913019,90769.0,90749.0,0.03021855]
[1768115248927,0.011031,90762.0,90749.0,0.03021855]
[1768115249833,0.011031,90762.0,90750.0,0.011032]
[1768115251838,0.00913019,90769.0,90751.0,0.011032]
[1768115252039,0.07913019,90769.0,90751.0,0.011032]
[1768115253230,0.01103,90765.0,90751.0,0.011032]
[1768115253638,0.01103,90764.0,90751.0,0.011032]
[1768115253841,0.00913019,90769.0,90749.0,0.01918655]
[1768115254040,0.01103,90764.0,90750.0,0.011032]
[1768115254840,0.00913019,90769.0,90749.0,0.01918655]
[1768115255050,0.01103,90763.0,90750.0,0.011032]
[1768115258649,0.01103,90763.0,90751.0,0.011032]
[1768115259050,0.00913019,90769.0,90749.0,0.01918655]
[1768115259246,0.01103,90765.0,90750.0,0.011032]
[1768115259650,0.01103,90765.0,90751.0,0.011032]
[1768115260751,0.01103,90764.0,90751.0,0.011032]
[1768115261350,0.00913019,90769.0,90749.0,0.01918655]
[1768115261551,0.08913019,90769.0,90749.0,0.01918655]
[1768115262251,0.011031,90761.0,90749.0,0.01918655]
[1768115262958,0.01103,90763.0,90749.0,0.03021855]
[1768115263143,0.01103,90763.0,90750.0,0.011032]
[1768115264554,0.15180009,90760.0,90750.0,0.011032]
[1768115265245,0.15180009,90760.0,90749.0,0.03021855]
[1768115266553,0.15180009,90760.0,90749.0,0.01918655]
[1768115266748,0.15180009,90760.0,90750.0,0.011032]
[1768115272865,0.01103,90763.0,90750.0,0.011032]
[1768115273068,0.15180009,90760.0,90750.0,0.011032]
[1768115274467,0.16283109,90760.0,90749.0,0.00930099]
[1768115274768,0.15180009,90760.0,90749.0,0.00930099]
[1768115277867,0.15180009,90760.0,90748.0,0.011032]
[1768115281768,0.15180009,90760.0,90746.0,0.10308795]
[1768115281769,0.011031,90761.0,90746.0,0.104792]
[1768115282265,0.15180009,90760.0,90746.0,0.104792]
[1768115282470,0.011031,90761.0,90746.0,0.104792]
[1768115282769,0.15180009,90760.0,90746.0,0.104792]
[1768115284171,0.01103,90764.0,90748.0,0.011032]
[1768115284470,0.15180009,90760.0,90749.0,0.011032]
[1768115286473,0.01103,90764.0,90749.0,0.011032]
[1768115286771,0.15180009,90760.0,90749.0,0.011032]
[1768115288173,0.01103,90764.0,90749.0,0.011032]
[1768115288563,0.15180009,90760.0,90749.0,0.011032]
[1768115288765,0.011031,90763.0,90746.0,0.09376]
[1768115288966,0.15180009,90760.0,90746.0,0.09376]
[1768115289373,0.011031,90763.0,90746.0,0.09376]
[1768115289573,0.15180009,90760.0,90746.0,0.09376]
[1768115290274,0.15180009,90760.0,90748.0,0.011032]
[1768115290774,0.00913019,90769.0,90746.0,0.09376]
[1768115290974,0.01103,90766.0,90750.0,0.011032]
[1768115291373,0.01103,90765.0,90750.0,0.011032]
[1768115291768,0.01103,90764.0,90749.0,0.011032]
[1768115300482,0.01103,90763.0,90748.0,0.011032]
[1768115302485,0.01103,90763.0,90746.0,0.09376]
[1768115302977,0.0096655,90768.0,90746.0,0.09376]
[1768115303282,0.01103,90765.0,90750.0,0.011032]
[1768115303676,0.01103,90765.0,90751.0,0.011032]
[1768115322591,0.01103,90765.0,90749.0,0.011032]
[1768115322788,0.01103,90764.0,90749.0,0.011032]
[1768115323093,0.15180009,90760.0,90749.0,0.011032]
[1768115325193,0.15180009,90760.0,90746.0,0.11256635]
[1768115325387,0.15180009,90760.0,90748.0,0.011032]
[1768115326498,0.01108595,90767.0,90750.0,0.011032]
[1768115327300,0.01108595,90767.0,90752.0,0.011032]
[1768115327905,5.595e-05,90767.0,90746.0,0.11256635]
[1768115329203,0.01108595,90767.0,90750.0,0.011032]
[1768115338318,9.014e-05,90763.0,90748.0,0.011032]
[1768115340622,9.014e-05,90763.0,90749.0,0.011032]
[1768115341126,9.014e-05,90763.0,90750.0,0.011032]
[1768115341423,0.01103,90764.0,90750.0,0.011032]
[1768115343726,0.011031,90763.0,90750.0,0.011032]
[1768115348618,0.011031,90762.0,90750.0,0.011032]
[1768115349426,0.011031,90762.0,90748.0,0.011032]
[1768115350324,0.011031,90761.0,90748.0,0.011032]
[1768115351526,0.011031,90759.0,90746.0,0.09376]
[1768115351926,0.011031,90759.0,90746.0,0.104792]
[1768115352925,0.011031,90761.0,90746.0,0.104792]
[1768115356422,0.011031,90761.0,90747.0,0.011032]
[1768115357428,0.011031,90761.0,90748.0,0.011032]
[1768115357613,0.011031,90761.0,90746.0,0.104792]
[1768115358025,0.011031,90761.0,90747.0,0.011032]
[1768115358620,0.01103,90763.0,90748.0,0.011032]
[1768115365729,0.01103,90763.0,90749.0,0.011032]
[1768115368934,0.01103,90763.0,90750.0,0.011032]
[1768115371434,0.09376,90770.0,90747.0,0.01911848]
[1768115371636,0.16376,90770.0,90747.0,0.01911848]
[1768115371837,0.011031,90763.0,90748.0,0.011032]
[1768115372230,0.09376,90770.0,90748.0,0.011032]
[1768115372231,0.011031,90761.0,90748.0,0.011032]
[1768115372431,0.01103,90763.0,90748.0,0.011032]
[1768115372936,0.01103,90763.0,90749.0,0.011032]
[1768115373137,0.011031,90762.0,90749.0,0.011032]
[1768115377237,0.011031,90762.0,90750.0,0.011032]
[1768115377734,0.01103,90764.0,90750.0,0.011032]
[1768115377928,0.01103,90764.0,90747.0,0.01911848]
[1768115378239,0.01103,90764.0,90750.0,0.011032]
[1768115379839,0.011031,90763.0,90750.0,0.011032]
[1768115383137,0.01103,90765.0,90750.0,0.011032]
[1768115385238,0.01103,90764.0,90750.0,0.011032]
[1768115387948,0.09376,90770.0,90750.0,0.011032]
[1768115388149,0.17376,90770.0,90750.0,0.011032]
[1768115388745,0.32555893,90770.0,90750.0,0.011032]
[1768115388949,0.00016542,90769.0,90750.0,0.011032]
[1768115389148,0.01103,90764.0,90750.0,0.011032]
[1768115391354,0.15179893,90760.0,90750.0,0.011032]
[1768115392651,0.01103,90764.0,90750.0,0.011032]
[1768115392951,0.15179893,90760.0,90750.0,0.011032]
[1768115394852,0.01103,90764.0,90750.0,0.011032]
[1768115395053,0.15179893,90760.0,90750.0,0.011032]
[1768115395252,0.15179893,90760.0,90751.0,0.011032]
[1768115396553,0.15179893,90760.0,90746.0,0.09376]
[1768115396857,0.15179893,90756.0,90743.0,0.09376]
[1768115397047,0.15179893,90753.0,90743.0,0.09376]
[1768115397250,0.011031,90756.0,90743.0,0.09376]
[1768115397648,0.15179893,90760.0,90743.0,0.09376]
[1768115399052,0.15197922,90760.0,90743.0,0.09376]
[1768115399351,0.011031,90757.0,90743.0,0.09376]
[1768115400256,0.15197922,90760.0,90743.0,0.09376]
[1768115400455,0.011032,90754.0,90743.0,0.09376]
[1768115400958,0.011031,90757.0,90743.0,0.09376]
[1768115402158,0.15197922,90760.0,90743.0,0.104793]
[1768115402159,0.16301022,90760.0,90743.0,0.104793]
[1768115402361,0.011031,90758.0,90743.0,0.104793]
[1768115402658,0.011031,90758.0,90743.0,0.09376]
[1768115404668,0.011031,90756.0,90743.0,0.09376]
[1768115405964,0.011032,90753.0,90743.0,0.09376]
[1768115409456,0.011031,90756.0,90743.0,0.09376]
[1768115412060,0.15197922,90760.0,90741.0,0.00983009]
[1768115412262,0.011032,90754.0,90741.0,0.01891464]
[1768115412561,0.011032,90754.0,90742.0,0.01891464]
[1768115415472,0.15197922,90760.0,90742.0,0.01891464]
[1768115415659,0.22197922,90760.0,90742.0,0.01891464]
[1768115416172,0.011032,90753.0,90742.0,0.01891464]
[1768115417277,0.011031,90757.0,90742.0,0.01891464]
[1768115418878,0.00018029,90760.0,90739.0,0.01891464]
[1768115419083,0.15179893,90750.0,90740.0,0.011033]
[1768115419272,0.011032,90753.0,90740.0,0.011033]
[1768115419471,0.011031,90755.0,90740.0,0.011033]
[1768115419672,0.011031,90755.0,90742.0,0.011033]
[1768115419978,0.15179893,90752.0,90742.0,0.011033]
[1768115420577,0.011031,90755.0,90742.0,0.011033]
[1768115420777,0.011031,90756.0,90741.0,0.01891464]
[1768115421383,0.15197922,90760.0,90741.0,0.01891464]
[1768115421582,0.15179893,90751.0,90741.0,0.01891464]
[1768115423581,0.15179893,90751.0,90741.0,0.00908455]
[1768115423785,0.15179893,90751.0,90742.0,0.011033]
[1768115428486,0.011031,90757.0,90742.0,0.011033]
[1768115428686,0.15179893,90752.0,90742.0,0.011033]
[1768115430791,0.011031,90757.0,90742.0,0.011033]
[1768115431090,0.15179893,90752.0,90742.0,0.011033]
[1768115431395,0.01130528,90758.0,90743.0,0.011033]
[1768115431592,0.15179893,90752.0,90743.0,0.011033]
[1768115434389,0.00037872,90757.0,90743.0,0.011033]
[1768115434590,0.15179893,90753.0,90743.0,0.011033]
[1768115436795,0.01151388,90756.0,90743.0,0.011033]
[1768115436983,0.15179893,90753.0,90743.0,0.011033]
[1768115437187,0.15179893,90753.0,90738.0,0.94498458]
[1768115437188,0.15179893,90753.0,90744.0,0.011033]
[1768115441197,0.15179893,90754.0,90744.0,0.011033]
[1768115443901,0.00048288,90756.0,90744.0,0.011033]
[1768115444085,0.15179893,90754.0,90744.0,0.011033]
[1768115445000,0.00048288,90756.0,90744.0,0.011033]
[1768115447398,0.00069286,90753.0,90738.0,0.94498458]
[1768115447600,0.15179893,90750.0,90741.0,0.011033]
[1768115448101,0.15179893,90750.0,90739.0,0.011033]
[1768115448294,0.15179893,90750.0,90741.0,0.011033]
[1768115448495,0.00069286,90753.0,90741.0,0.011033]
[1768115448907,0.00069286,90753.0,90739.0,0.011033]
[1768115449199,0.00079738,90747.0,90738.0,0.00242458]
[1768115449398,0.00079738,90747.0,90735.0,0.0851715]
[1768115449903,0.00079738,90747.0,90736.0,0.011034]
[1768115451706,0.011033,90745.0,90735.0,0.0851715]
[1768115451907,0.00079738,90747.0,90735.0,0.0851715]
[1768115452297,0.011033,90746.0,90735.0,0.0851715]
[1768115453503,0.00079738,90747.0,90735.0,0.0851715]
[1768115453711,0.00078282,90745.0,90730.0,0.011034]
[1768115453900,0.011033,90742.0,90730.0,0.011034]
[1768115454302,0.011033,90742.0,90727.0,0.09376]
[1768115455208,0.011033,90742.0,90727.0,0.104795]
[1768115456008,0.011033,90742.0,90728.0,0.011035]
[1768115457212,0.011033,90742.0,90727.0,0.09376]
[1768115458412,0.011033,90739.0,90727.0,0.09376]
[1768115460716,0.011034,90735.0,90727.0,0.09376]
[1768115460917,0.00077142,90742.0,90727.0,0.09376]
[1768115461308,0.011034,90732.0,90727.0,0.09376]
[1768115461508,0.011034,90731.0,90727.0,0.09376]
[1768115462016,0.011034,90731.0,90721.0,0.96268022]
[1768115462217,0.011035,90730.0,90721.0,0.95282528]
[1768115462516,0.011035,90730.0,90717.0,0.02089094]
[1768115462816,0.0008404,90733.0,90716.0,0.00974528]
[1768115463018,0.011035,90727.0,90716.0,0.00974528]
[1768115463216,0.0008404,90733.0,90716.0,0.00974528]
[1768115463611,0.00014306,90732.0,90716.0,0.00974528]
[1768115464011,0.011035,90725.0,90716.0,0.00974528]
[1768115464215,0.011034,90731.0,90716.0,0.02078128]
[1768115464621,0.01117706,90732.0,90719.0,0.011036]
[1768115464813,0.00014306,90732.0,90719.0,0.011036]
[1768115465222,0.00014306,90732.0,90717.0,0.00928213]
[1768115465414,0.011034,90731.0,90717.0,0.01882082]
[1768115465615,0.00014306,90732.0,90717.0,0.01882082]
[1768115467123,0.011034,90731.0,90717.0,0.01882082]
[1768115467326,0.011035,90729.0,90717.0,0.01882082]
[1768115471325,0.01117706,90732.0,90717.0,0.01882082]
[1768115472224,0.01117706,90732.0,90717.0,0.02985682]
[1768115477931,0.01117706,90732.0,90718.0,0.011036]
[1768115479931,0.01117706,90732.0,90717.0,0.01882082]
[1768115480734,0.01117706,90732.0,90720.0,0.011036]
[1768115480933,0.01117706,90732.0,90718.0,0.011036]
[1768115482631,0.011034,90731.0,90718.0,0.011036]
[1768115485329,0.011034,90731.0,90718.0,0.02985682]
[1768115485634,0.00014306,90732.0,90721.0,0.011036]
[1768115486827,0.00014306,90732.0,90719.0,0.011036]
[1768115487029,0.011034,90731.0,90718.0,0.01882082]
[1768115487333,0.00014306,90732.0,90719.0,0.011036]
[1768115488138,0.01117706,90732.0,90719.0,0.02985682]
[1768115489435,0.00014306,90732.0,90719.0,0.02985682]
[1768115489924,0.01117706,90732.0,90719.0,0.01882082]
[1768115490127,0.00014306,90732.0,90719.0,0.01882082]
[1768115491139,0.00014306,90732.0,90721.0,0.011035]
[1768115491333,0.00014306,90732.0,90719.0,0.01882082]
[1768115491334,0.00014306,90732.0,90719.0,0.02985682]
[1768115492432,0.00014306,90732.0,90720.0,0.011036]
[1768115494937,0.00014306,90732.0,90720.0,0.02033272]
[1768115495139,0.00014306,90732.0,90720.0,0.03003249]
[1768115495523,0.00014306,90732.0,90720.0,0.01899649]
[1768115495728,0.011035,90729.0,90720.0,0.00969977]
[1768115495941,0.011035,90729.0,90716.0,0.00929672]
[1768115496232,0.00014306,90732.0,90716.0,0.00929672]
[1768115496923,0.011035,90729.0,90716.0,0.02033272]
[1768115498334,0.00014306,90732.0,90716.0,0.00929672]
[1768115498528,0.011035,90726.0,90716.0,0.00929672]
[1768115502231,0.011035,90724.0,90716.0,0.00929672]
[1768115503243,0.011035,90726.0,90716.0,0.00929672]
[1768115505446,0.011035,90723.0,90716.0,0.00929672]
[1768115506845,0.011035,90726.0,90716.0,0.00929672]
[1768115507242,0.011035,90728.0,90716.0,0.00929672]
[1768115510641,0.15192364,90730.0,90716.0,0.00929672]
[1768115510835,0.15192364,90730.0,90717.0,0.011036]
[1768115511035,0.15192364,90730.0,90718.0,0.011036]
[1768115512049,0.15192364,90730.0,90716.0,0.02033272]
[1768115512948,0.15192364,90730.0,90717.0,0.011036]
[1768115513248,0.15192364,90730.0,90718.0,0.011036]
[1768115517640,0.15192364,90730.0,90716.0,0.00929672]
[1768115518352,0.15192364,90730.0,90720.0,0.011036]
[1768115518850,0.15192364,90730.0,90718.0,0.011036]
[1768115521849,0.011035,90729.0,90716.0,0.00929672]
[1768115522151,0.011035,90729.0,90716.0,0.011036]
[1768115522566,0.15192364,90730.0,90716.0,0.011036]
[1768115525654,0.15192364,90730.0,90717.0,0.011036]
[1768115526455,0.01066216,90729.0,90710.0,0.0938]
[1768115526846,0.01066216,90729.0,90710.0,0.10338428]
[1768115527854,0.01066216,90729.0,90711.0,0.00958428]
[1768115528060,0.01066216,90729.0,90716.0,0.011036]
[1768115528259,0.01117706,90732.0,90711.0,0.00958428]
[1768115528556,0.15192364,90730.0,90711.0,0.00958428]
[1768115529055,0.15192364,90730.0,90712.0,0.00958428]
[1768115529257,0.15192364,90730.0,90718.0,0.011036]
[1768115536264,0.16295764,90730.0,90716.0,0.011036]
[1768115536454,0.15192364,90730.0,90717.0,0.011036]
[1768115540062,0.15192364,90730.0,90719.0,0.011036]
[1768115543469,0.15192364,90730.0,90717.0,0.011036]
[1768115543767,0.15192364,90730.0,90718.0,0.011036]
[1768115546169,0.15192364,90730.0,90712.0,0.00958428]
[1768115546371,0.15295047,90730.0,90719.0,0.011036]
[1768115547371,0.16398547,90730.0,90716.0,0.011036]
[1768115547570,0.15295047,90730.0,90717.0,0.011036]
[1768115550180,0.16398447,90730.0,90717.0,0.011036]
[1768115552288,0.15295047,90730.0,90717.0,0.011036]
[1768115553084,0.00097797,90729.0,90717.0,0.011036]
[1768115558888,0.00097797,90729.0,90718.0,0.011036]
[1768115561095,0.15192364,90730.0,90718.0,0.011036]
[1768115561992,0.15192364,90730.0,90719.0,0.011036]
[1768115564898,0.15192364,90730.0,90717.0,0.011036]
[1768115565088,0.15192364,90730.0,90715.0,0.011036]
[1768115565687,0.15192364,90730.0,90711.0,0.0096018]
[1768115565891,0.16295764,90730.0,90715.0,0.011036]
[1768115568396,0.16380166,90730.0,90715.0,0.011036]
[1768115569600,0.15276766,90730.0,90711.0,0.0096018]
[1768115569796,0.011035,90728.0,90714.0,0.011036]
[1768115572799,0.00083823,90729.0,90715.0,0.011036]
[1768115573598,0.00083823,90729.0,90711.0,0.0096018]
[1768115573797,0.00083823,90729.0,90717.0,0.011036]
[1768115574595,0.00956946,90730.0,90717.0,0.011036]
[1768115574801,0.08956946,90730.0,90711.0,0.0096018]
[1768115575800,0.08956946,90730.0,90718.0,0.011036]
[1768115579804,0.08956946,90730.0,90719.0,0.011036]
[1768115580304,0.08956946,90730.0,90717.0,0.011036]
[1768115581102,0.08956946,90730.0,90718.0,0.011036]
[1768115581603,0.08956946,90730.0,90719.0,0.011036]
[1768115582705,0.08956946,90730.0,90712.0,0.011037]
[1768115582909,0.08956946,90730.0,90711.0,0.0096018]
[1768115584708,0.09039528,90730.0,90718.0,0.011036]
[1768115586005,0.09039528,90730.0,90711.0,0.0096018]
[1768115587211,0.09039528,90730.0,90718.0,0.011036]
[1768115587698,0.09039528,90730.0,90711.0,0.0096018]
[1768115588907,0.09039528,90730.0,90718.0,0.011036]
[1768115592812,0.09039528,90730.0,90716.0,0.011036]
[1768115593516,0.09039528,90730.0,90717.0,0.011036]
[1768115596923,0.09039528,90730.0,90719.0,0.011036]
[1768115597817,0.00014306,90732.0,90717.0,0.00941432]
[1768115598120,0.09453333,90737.0,90728.0,0.011035]
[1768115598322,0.16453333,90737.0,90728.0,0.011035]
[1768115598920,0.07073333,90737.0,90730.0,0.011034]
[1768115599122,0.07073333,90737.0,90727.0,0.011035]
[1768115609224,0.00086548,90736.0,90727.0,0.011035]
[1768115609428,0.03086548,90736.0,90727.0,0.011035]
[1768115611628,0.03086548,90736.0,90725.0,0.011035]
[1768115619538,0.03086548,90736.0,90718.0,0.0294858]
[1768115621334,0.03086548,90736.0,90725.0,0.011035]
[1768115623638,0.03086548,90736.0,90718.0,0.0294858]
[1768115626041,0.03086548,90736.0,90727.0,0.011035]
[1768115626434,0.03086548,90736.0,90718.0,0.0184498]
[1768115626741,0.03086548,90736.0,90726.0,0.011035]
[1768115631246,0.03086548,90736.0,90719.0,0.011036]
[1768115633147,0.03086548,90736.0,90726.0,0.011035]
[1768115637651,0.03086548,90736.0,90727.0,0.011035]
[1768115638051,0.03086548,90736.0,90719.0,0.011036]
[1768115638248,0.03086548,90736.0,90726.0,0.011035]
[1768115643356,0.03086548,90736.0,90727.0,0.011035]
[1768115656176,0.00964063,90741.0,90730.0,0.011034]
[1768115656378,0.2456847,90740.0,90729.0,0.011035]
[1768115656571,0.3256847,90740.0,90729.0,0.011035]
[1768115657071,0.32630686,90740.0,90729.0,0.011035]
[1768115660277,0.32630686,90740.0,90730.0,0.011034]
[1768115661670,0.32630686,90740.0,90722.0,0.01948216]
[1768115662475,0.32630686,90740.0,90722.0,0.00959371]
[1768115662674,0.00062096,90739.0,90722.0,0.00959371]
[1768115662869,0.00062096,90739.0,90729.0,0.011034]
[1768115668884,0.00062096,90739.0,90722.0,0.00959371]
[1768115669073,0.2456847,90740.0,90722.0,0.01948216]
[1768115669275,0.3156847,90740.0,90722.0,0.01948216]
[1768115671186,0.3156847,90740.0,90729.0,0.011034]
[1768115674990,0.3156847,90740.0,90727.0,0.011035]
[1768115675892,0.3156847,90740.0,90722.0,0.01948216]
[1768115676083,0.3156847,90740.0,90728.0,0.011035]
[1768115678893,0.31673774,90740.0,90728.0,0.011035]
[1768115683098,0.00073118,90739.0,90728.0,0.011035]
[1768115683296,0.00073118,90739.0,90729.0,0.011034]
[1768115686397,0.2456847,90740.0,90723.0,0.0206088]
[1768115686597,0.3256847,90740.0,90723.0,0.0206088]
[1768115687197,0.3256847,90740.0,90729.0,0.011035]
[1768115688105,0.3256847,90740.0,90723.0,0.0095738]
[1768115688299,0.3256847,90740.0,90728.0,0.011035]
[1768115689401,0.3256847,90740.0,90729.0,0.011034]
[1768115694509,0.1738,90740.0,90729.0,0.011034]
[1768115695508,0.17452051,90740.0,90729.0,0.011034]
[1768115702226,0.00074822,90739.0,90729.0,0.011034]
[1768115703432,0.00074822,90739.0,90727.0,0.011035]
[1768115705422,0.00074822,90739.0,90728.0,0.011035]
[1768115707930,0.00074822,90739.0,90722.0,0.00959371]
[1768115708234,0.00062578,90746.0,90730.0,0.011034]
[1768115708429,0.12081199,90745.0,90730.0,0.011034]
[1768115708630,0.02701199,90744.0,90730.0,0.011034]
[1768115708832,0.08062578,90744.0,90730.0,0.011034]
[1768115709331,0.00062578,90743.0,90730.0,0.011034]
[1768115709628,0.00062578,90752.0,90732.0,0.01839996]
[1768115709931,0.07062578,90752.0,90742.0,0.011033]
[1768115710232,0.07062578,90752.0,90744.0,0.011033]
[1768115710233,0.07,90752.0,90744.0,0.011033]
[1768115710619,0.07,90752.0,90734.0,0.02943396]
[1768115710620,0.07,90752.0,90740.0,0.011033]
[1768115710815,0.07,90752.0,90734.0,0.01839996]
[1768115711016,0.00169811,90760.0,90739.0,0.01839996]
[1768115711225,0.08,90760.0,90743.0,0.00923127]
[1768115711428,0.08,90760.0,90748.0,0.011032]
[1768115711621,0.08,90760.0,90750.0,0.011032]
[1768115712024,0.08,90760.0,90745.0,0.011033]
[1768115712224,0.08166798,90760.0,90742.0,0.02020169]
[1768115712531,0.08166798,90760.0,90742.0,0.00916869]
[1768115712730,0.08166798,90760.0,90745.0,0.011033]
[1768115716440,0.00185864,90759.0,90745.0,0.011033]
[1768115716729,0.08185864,90759.0,90745.0,0.011033]
[1768115718129,0.08185864,90759.0,90742.0,0.00916869]
[1768115718437,0.08185864,90759.0,90743.0,0.011033]
[1768115718643,0.08185864,90759.0,90745.0,0.011033]
[1768115721434,0.00175206,90758.0,90742.0,0.00916869]
[1768115721740,0.08175206,90758.0,90744.0,0.011033]
[1768115725247,0.08175206,90758.0,90740.0,0.10303127]
[1768115725441,0.08175206,90758.0,90745.0,0.011033]
[1768115728245,0.08175206,90758.0,90740.0,0.10303127]
[1768115729142,0.08175206,90758.0,90745.0,0.011033]
[1768115730340,0.08175206,90758.0,90744.0,0.011033]
[1768115730539,0.08175206,90758.0,90745.0,0.011033]
[1768115731545,0.08175206,90758.0,90746.0,0.011032]
[1768115734145,0.00172891,90757.0,90740.0,0.0938]
[1768115734346,0.08172891,90757.0,90740.0,0.0938]
[1768115735047,0.08172891,90757.0,90743.0,0.011033]
[1768115735243,0.08172891,90757.0,90744.0,0.011033]
[1768115739040,0.08172891,90757.0,90743.0,0.011033]
[1768115740042,0.08172891,90757.0,90744.0,0.011033]
[1768115740239,0.08172891,90757.0,90740.0,0.0938]
[1768115740240,0.08172891,90757.0,90745.0,0.011033]
[1768115742249,0.0016545,90756.0,90742.0,0.011033]
[1768115743149,0.0016545,90756.0,90744.0,0.011033]
[1768115745839,0.0016545,90756.0,90745.0,0.011033]
[1768115746438,0.0016545,90756.0,90740.0,0.0938]
[1768115746439,0.0016545,90756.0,90746.0,0.011032]
[1768115747851,0.011031,90759.0,90746.0,0.011032]
[1768115748049,0.09265057,90759.0,90746.0,0.011032]
[1768115748244,0.08161957,90759.0,90746.0,0.011032]
[1768115748651,0.08161957,90759.0,90744.0,0.011033]
[1768115749153,0.011031,90758.0,90744.0,0.011033]
[1768115749358,0.091031,90758.0,90744.0,0.011033]
[1768115750653,0.091031,90758.0,90742.0,0.011033]
[1768115753253,0.08,90758.0,90742.0,0.011033]
[1768115753755,0.08178621,90758.0,90742.0,0.011033]
[1768115754056,0.08178621,90758.0,90746.0,0.011032]
[1768115756062,0.08178621,90758.0,90742.0,0.011033]
[1768115756252,0.08178621,90758.0,90740.0,0.0938]
[1768115757163,0.08178621,90758.0,90743.0,0.011033]
[1768115760368,0.00182311,90757.0,90743.0,0.011033]
[1768115760664,0.08182311,90757.0,90743.0,0.011033]
[1768115761765,0.08182311,90757.0,90740.0,0.0938]
[1768115763176,0.08182311,90757.0,90744.0,0.011033]
[1768115767274,0.08182311,90757.0,90745.0,0.011033]
[1768115773283,0.00188026,90756.0,90744.0,0.011033]
[1768115773586,0.00188026,90756.0,90746.0,0.011032]
[1768115780792,0.00188026,90756.0,90744.0,0.011033]
[1768115781090,0.00189809,90759.0,90744.0,0.011033]
[1768115781284,0.07189809,90759.0,90744.0,0.011033]
[1768115781892,0.00189809,90758.0,90744.0,0.011033]
[1768115782097,0.07189809,90758.0,90744.0,0.011033]
[1768115788590,0.08292909,90758.0,90742.0,0.011033]
[1768115789090,0.011031,90757.0,90742.0,0.011033]
[1768115789291,0.081031,90757.0,90742.0,0.011033]
[1768115789702,0.011031,90756.0,90742.0,0.011033]
[1768115790199,0.011031,90756.0,90740.0,0.0938]
[1768115790200,0.011031,90755.0,90740.0,0.104833]
[1768115790498,0.011031,90755.0,90742.0,0.011033]
[1768115791097,0.011031,90755.0,90743.0,0.011033]
[1768115792198,0.01308384,90757.0,90743.0,0.011033]
[1768115792502,0.011032,90754.0,90740.0,0.104833]
[1768115792698,0.15181507,90750.0,90740.0,0.0938]
[1768115792891,0.00205284,90749.0,90740.0,0.0938]
[1768115793700,0.15181507,90750.0,90740.0,0.0938]
[1768115793884,0.15181507,90750.0,90740.0,0.104833]
[1768115794089,0.15181507,90750.0,90740.0,0.0938]
[1768115794300,0.15181507,90750.0,90738.0,0.104793]
[1768115794496,0.15181507,90750.0,90738.0,0.011033]
[1768115794798,0.15181507,90750.0,90738.0,0.104793]
[1768115796096,0.23181507,90750.0,90739.0,0.011033]
[1768115797400,0.24284707,90750.0,90738.0,0.09376]
[1768115798707,0.011032,90749.0,90738.0,0.09376]
[1768115801008,0.15181507,90750.0,90738.0,0.09376]
[1768115801197,0.011033,90746.0,90738.0,0.09376]
[1768115802808,0.011032,90748.0,90738.0,0.09376]
[1768115807502,0.011032,90747.0,90738.0,0.09376]
[1768115808911,0.011033,90745.0,90738.0,0.09376]
[1768115811912,0.011033,90743.0,90737.0,0.09376]
[1768115815015,0.011033,90743.0,90737.0,0.10318231]
[1768115816821,0.011033,90745.0,90737.0,0.10318231]
[1768115817117,0.011033,90745.0,90738.0,0.00942231]
[1768115817917,0.011033,90743.0,90738.0,0.01871979]
[1768115818220,0.011033,90746.0,90738.0,0.01871979]
[1768115818811,0.011033,90745.0,90738.0,0.01871979]
[1768115821319,0.011032,90751.0,90738.0,0.01871979]
[1768115821620,0.081032,90751.0,90738.0,0.01871979]
[1768115822322,0.081032,90751.0,90739.0,0.011033]
[1768115823221,0.07,90751.0,90739.0,0.011033]
[1768115824325,0.07,90751.0,90741.0,0.011033]
[1768115829727,0.081032,90751.0,90739.0,0.011033]
[1768115830829,0.07,90751.0,90738.0,0.00929748]
[1768115831629,0.07,90751.0,90737.0,0.09376]
[1768115832134,0.011032,90750.0,90737.0,0.104793]
[1768115832320,0.081032,90750.0,90738.0,0.011033]
[1768115832832,0.011032,90749.0,90738.0,0.011033]
[1768115833219,0.011032,90751.0,90738.0,0.011033]
[1768115833621,0.081032,90751.0,90738.0,0.011033]
[1768115833821,0.011032,90750.0,90737.0,0.09376]
[1768115834035,0.081032,90750.0,90737.0,0.09376]
[1768115834444,0.011032,90748.0,90738.0,0.011033]
[1768115835146,0.011032,90750.0,90738.0,0.011033]
[1768115835446,0.011032,90749.0,90738.0,0.011033]
[1768115836644,0.00931313,90755.0,90739.0,0.011033]
[1768115836944,0.07931313,90755.0,90739.0,0.011033]
[1768115837244,0.011032,90752.0,90741.0,0.011033]
[1768115837445,0.081032,90752.0,90741.0,0.011033]
[1768115841150,0.07,90752.0,90742.0,0.011033]
[1768115842951,0.081032,90752.0,90742.0,0.011033]
[1768115845553,0.07,90752.0,90742.0,0.011033]
[1768115855560,0.07,90752.0,90743.0,0.011033]
[1768115858473,0.081032,90752.0,90737.0,0.09376]
[1768115860166,0.081032,90752.0,90741.0,0.011033]
[1768115863168,0.07,90752.0,90742.0,0.011033]
[1768115863360,0.07,90752.0,90737.0,0.09376]
[1768115864170,0.07,90752.0,90743.0,0.011033]
[1768115869181,0.07,90752.0,90737.0,0.09376]
[1768115869366,0.07,90752.0,90742.0,0.011033]
[1768115870176,0.07987475,90752.0,90742.0,0.011033]
[1768115875378,0.07987475,90752.0,90737.0,0.09376]
[1768115875379,0.011032,90751.0,90737.0,0.09376]
[1768115875580,0.091032,90751.0,90737.0,0.09376]
[1768115876580,0.15183429,90750.0,90737.0,0.09376]
[1768115876771,0.23183429,90750.0,90737.0,0.09376]
[1768115877180,0.23183429,90750.0,90740.0,0.011033]
[1768115877373,0.23183429,90750.0,90741.0,0.011033]
[1768115877781,0.23183429,90750.0,90742.0,0.011033]
[1768115878679,0.23183429,90750.0,90737.0,0.09376]